fUSD/lending_fUSD_20260412
["ID","MTS","AMOUNT","RATE_DAILY","PERIOD"]
[420322309,1775962302654,-1790.37,0.00038356,8]
[420322310,1775962302664,-950.46,0.00038356,8]
[420322311,1775962302696,-500.0,0.00038356,8]
[420322312,1775962302736,-1148.12,0.00038356,8]
[420322313,1775962302777,-1252.01,0.00038356,8]
[420322314,1775962302829,-500.0,0.00038356,8]
[420322315,1775962302882,-276.258651,0.00038356,120]
[420322316,1775962302931,-509.0,0.00038465,14]
[420322317,1775962302952,-2258.48775042,0.0003863,8]
[420322318,1775962302962,-500.0,0.0003863,8]
[420322319,1775962302975,-500.0,0.0003863,8]
[420322320,1775962303000,-734.0,0.0003863,8]
[420322321,1775962303011,-500.0,0.0003863,8]
[420322322,1775962303020,-500.0,0.0003863,8]
[420322323,1775962303029,-614.41,0.0003863,8]
[420322324,1775962303045,-500.0,0.0003863,8]
[420322325,1775962303055,-500.0,0.0003863,8]
[420322326,1775962303064,-500.0,0.0003863,8]
[420322327,1775962303074,-10.98910033,0.0003863,8]
[420322328,1775962303091,-1265.40089967,0.0003863,8]
[420322329,1775962303100,-500.0,0.0003863,8]
[420322330,1775962303110,-500.0,0.0003863,8]
[420322331,1775962303119,-500.0,0.0003863,8]
[420322332,1775962303128,-500.0,0.0003863,8]
[420322333,1775962303143,-323.04180264,0.0003863,8]
[420322334,1775962316654,1001.97,0.00030136,120]
[420322335,1775962317999,500.0,0.00025002,120]
[420322336,1775962318163,500.0,0.00023146,120]
[420322337,1775962321173,500.0,0.00023696,120]
[420322338,1775962321245,500.0,0.00023696,120]
[420322339,1775962321410,500.0,0.00023696,120]
[420322343,1775963139138,-150.0,0.00010698,2]
[420322344,1775963139175,-300.0,0.00010698,2]
[420322345,1775963139212,-225.67242057,0.00010698,2]
[420322380,1775963432176,-150.0,0.00010699,2]
[420322382,1775963432185,-500.0,0.00010699,2]
[420322383,1775963432221,-500.0,0.00010699,2]
[420322384,1775963432232,-500.0,0.00010699,2]
[420322385,1775963432261,-500.0,0.00010699,2]
[420322386,1775963432281,-500.0,0.00010699,2]
[420322387,1775963432300,-500.0,0.00010699,2]
[420322388,1775963432312,-500.0,0.00010699,2]
[420322389,1775963432341,-500.0,0.00010699,2]
[420322390,1775963432360,-500.0,0.00010699,2]
[420322391,1775963432395,-500.0,0.00010699,2]
[420322392,1775963432410,-500.0,0.00010699,2]
[420322393,1775963432436,-253.58984788,0.00010699,2]
[420322395,1775963432445,-500.0,0.00010699,2]
[420322397,1775963432477,-500.0,0.00010699,2]
[420322398,1775963432487,-500.0,0.00010699,2]
[420322399,1775963432507,-500.0,0.00010699,2]
[420322400,1775963432528,-500.0,0.00010699,2]
[420322401,1775963432540,-175.35898479,0.00010699,2]
[420322402,1775963432557,-241.70655386,0.00010699,2]
[420322403,1775963432585,-132519.7695515,0.000107,2]
[420322404,1775963432598,-255.0,0.00011737,2]
[420322405,1775963432656,-29464.81551052,0.000119,2]
[420322406,1775963432665,-840.1795187,0.00012204,2]
[420322407,1775963432697,-150.0,0.00012304,2]
[420322408,1775963432722,-150.0,0.00012304,2]
[420322409,1775963432733,-150.0,0.00012304,2]
[420322410,1775963432754,-150.0,0.00012304,2]
[420322411,1775963432766,-150.0,0.00012304,2]
[420322412,1775963432776,-150.0,0.00012304,2]
[420322413,1775963432786,-150.00000001,0.00012304,2]
[420322414,1775963432799,-150.0,0.00012304,2]
[420322415,1775963432812,-150.0,0.00012304,2]
[420322416,1775963432833,-150.0,0.00012304,2]
[420322417,1775963432843,-150.0,0.00012304,2]
[420322418,1775963432864,-150.0,0.00012395,2]
[420322419,1775963432877,-150.0,0.00012409,2]
[420322420,1775963432887,-150.0,0.00012418,2]
[420322421,1775963432906,-150.0,0.00012441,2]
[420322422,1775963432924,-150.0,0.00012441,2]
[420322423,1775963432933,-150.0,0.00012441,2]
[420322424,1775963432958,-150.0,0.00012486,2]
[420322425,1775963432973,-150.0,0.00012514,2]
[420322426,1775963432983,-150.0,0.00012532,2]
[420322427,1775963433001,-150.0,0.00012578,2]
[420322428,1775963433013,-150.0,0.00012578,2]
[420322429,1775963433022,-150.0,0.00012578,2]
[420322430,1775963433032,-150.0,0.00012578,2]
[420322431,1775963433044,-150.0,0.00012578,2]
[420322432,1775963433058,-150.0,0.0001262,2]
[420322433,1775963433067,-150.0,0.00012646,2]
[420322434,1775963433076,-150.0,0.00012646,2]
[420322435,1775963433092,-150.0,0.00012669,2]
[420322436,1775963433101,-150.0,0.00012714,2]
[420322437,1775963433110,-150.0,0.00012714,2]
[420322438,1775963433120,-150.0,0.00012714,2]
[420322439,1775963433132,-150.0,0.00012725,2]
[420322440,1775963433161,-150.0,0.0001276,2]
[420322441,1775963433173,-150.0,0.0001276,2]
[420322442,1775963433194,-150.0,0.0001276,2]
[420322443,1775963433210,-150.0,0.0001283,2]
[420322444,1775963433223,-150.0,0.00012851,2]
[420322445,1775963433253,-150.0,0.00012851,2]
[420322446,1775963433263,-150.0,0.00012851,2]
[420322447,1775963433273,-150.0,0.00012851,2]
[420322448,1775963433287,-150.0,0.00012851,2]
[420322449,1775963433317,-269.0,0.00012871,2]
[420322450,1775963433347,-150.0,0.00012874,2]
[420322451,1775963433383,-150.0,0.00012935,2]
[420322452,1775963433393,-150.0,0.00012942,2]
[420322453,1775963433450,-150.0,0.00012988,2]
[420322454,1775963433497,-150.0,0.00012988,2]
[420322455,1775963433508,-150.0,0.00012988,2]
[420322456,1775963433517,-150.0,0.00012988,2]
[420322457,1775963433539,-150.0,0.00012988,2]
[420322458,1775963433549,-250.0,0.00013,2]
[420322459,1775963433559,-150.0,0.00013,2]
[420322460,1775963433578,-150.0,0.00013033,2]
[420322461,1775963433590,-150.0,0.0001304,2]
[420322462,1775963433602,-1773.81461465,0.0001305,2]
[420322463,1775963433611,-150.0,0.00013102,2]
[420322464,1775963433623,-150.0,0.00013124,2]
[420322465,1775963433659,-150.0,0.00013124,2]
[420322466,1775963433671,-150.0,0.00013124,2]
[420322467,1775963433717,-150.0,0.00013124,2]
[420322468,1775963433732,-150.0,0.00013124,2]
[420322469,1775963433826,-150.0,0.00013145,2]
[420322470,1775963433932,-150.0,0.00013216,2]
[420322471,1775963433946,-150.0,0.00013216,2]
[420322472,1775963433959,-150.0,0.00013216,2]
[420322473,1775963433996,-150.0,0.00013251,2]
[420322474,1775963434033,-150.0,0.00013261,2]
[420322475,1775963434044,-150.0,0.00013261,2]
[420322476,1775963434082,-150.0,0.00013261,2]
[420322477,1775963434092,-150.0,0.00013307,2]
[420322478,1775963434109,-150.0,0.00013329,2]
[420322479,1775963434143,-150.0,0.00013329,2]
[420322480,1775963434152,-150.0,0.00013356,2]
[420322481,1775963434161,-150.0,0.00013398,2]
[420322482,1775963434189,-150.0,0.00013398,2]
[420322483,1775963434198,-150.0,0.00013398,2]
[420322484,1775963434208,-150.0,0.00013398,2]
[420322485,1775963434217,-150.0,0.00013398,2]
[420322486,1775963434229,-150.0,0.00013443,2]
[420322487,1775963434239,-150.0,0.00013461,2]
[420322488,1775963434254,-150.0,0.00013489,2]
[420322489,1775963434267,-150.0,0.00013535,2]
[420322490,1775963434284,-150.0,0.00013535,2]
[420322491,1775963434294,-150.0,0.00013535,2]
[420322492,1775963434303,-150.0,0.00013557,2]
[420322493,1775963434313,-150.0,0.00013566,2]
[420322494,1775963434331,-150.0,0.0001358,2]
[420322495,1775963434341,-408.61067286,0.00013598,2]
[420322496,1775963434353,-150.0,0.00013671,2]
[420322497,1775963434363,-150.0,0.00013671,2]
[420322498,1775963434376,-150.0,0.00013671,2]
[420322499,1775963434386,-150.0,0.00013671,2]
[420322500,1775963434396,-150.0,0.00013671,2]
[420322501,1775963434406,-292.82687385,0.00013671,2]
[420322502,1775963434421,-150.0,0.00013671,2]
[420322503,1775963434435,-150.0,0.00013671,2]
[420322504,1775963434457,-150.0,0.00013671,2]
[420322505,1775963434466,-446.00580429,0.00013682,2]
[420322506,1775963434487,-312.20406301,0.00013682,2]
[420322507,1775963434499,-346.31836695,0.00013682,2]
[420322508,1775963434512,-194299.3057725,0.00013683,2]
[420322509,1775963435349,-11758.7750853,0.00013683,2]
[420322510,1775963435371,-31790.7025333,0.00013683,2]
[420322511,1775963435408,-49556.66605102,0.00013683,2]
[420322527,1775963439623,-588.56262341,0.00012105,2]
[420322530,1775963439778,-425.31737659,0.00012105,2]
[420322531,1775963439792,-500.0,0.00012578,2]
[420322532,1775963439802,-170.6130001,0.00013673,2]
[420322533,1775963439813,-490.26100055,0.00013698,2]
[420322534,1775963439823,-332.24754782,0.00013698,2]
[420322535,1775963439840,-167.75245218,0.00013698,2]
[420322536,1775963439853,-500.0,0.00013698,2]
[420322537,1775963439863,-309.7473992,0.00013698,2]
[420322555,1775963441913,-190.2526008,0.00013698,2]
[420322556,1775963441933,-500.0,0.00013698,2]
[420322557,1775963441947,-166.66,0.00013699,2]
[420322558,1775963441958,-200.0,0.000137,5]
[420322559,1775963441978,-214.95088039,0.000138,5]
[420322560,1775963442323,-185.04911961,0.000138,5]
[420322561,1775963442337,-166.66,0.00013836,2]
[420322562,1775963442363,-600.0,0.000139,5]
[420322563,1775963442373,-166.66,0.00013973,2]
[420322564,1775963442390,-227.6304403,0.00014082,2]
[420322565,1775963442435,-166.66,0.0001411,2]
[420322568,1775963442488,-166.66,0.00014247,2]
[420322571,1775963442517,-166.66,0.00014384,2]
[420322572,1775963442529,-1000.0,0.00014681,2]
[420322573,1775963442539,-500.0,0.0001478,2]
[420322574,1775963442556,-500.0,0.0001478,2]
[420322575,1775963442589,-500.0,0.0001478,2]
[420322577,1775963442603,-500.0,0.0001478,2]
[420322578,1775963442629,-500.0,0.0001478,2]
[420322581,1775963442638,-500.0,0.0001478,2]
[420322582,1775963442662,-500.0,0.0001478,2]
[420322583,1775963442671,-976.76,0.00015,2]
[420322584,1775963442681,-840.17951861,0.00015099,2]
[420322585,1775963442705,-800.0,0.000158,5]
[420322586,1775963442719,-200.0,0.00015841,2]
[420322587,1775963442731,-500.0,0.00015899,2]
[420322588,1775963442741,-1100.0,0.000159,5]
[420322589,1775963442763,-500.0,0.00015999,2]
[420322590,1775963442772,-500.0,0.00015999,2]
[420322591,1775963442787,-36325.88792749,0.00016,2]
[420322601,1775963444317,-8694.77484247,0.00016,2]
[420322602,1775963444358,-277.82305696,0.00016,2]
[420322603,1775963444373,-68739.50023584,0.00016,2]
[420322604,1775963444394,-887.00102635,0.00016,2]
[420322605,1775963444423,-4694.93067227,0.00016,2]
[420322606,1775963444435,-989.29856,0.00016,2]
[420322663,1775963447292,-344.55195757,0.00016,2]
[420322686,1775963447605,-13004.66814329,0.00016,2]
[420323066,1775963579644,217.295014,0.00026322,120]
[420323067,1775964072582,173.190337,0.00024164,120]
[420323068,1775964143257,500.0,0.0003013,120]
[420323074,1775964631874,-250.0,0.00013,2]
[420323075,1775964631884,-300.0,0.00013697,2]
[420323076,1775964631893,-1085.6213828,0.00013697,2]
[420323077,1775964631907,-114.3786172,0.00013697,2]
[420323078,1775964631916,-500.0,0.00013698,2]
[420323079,1775964631928,-151.64129382,0.00013698,2]
[420323080,1775964631969,-344.21686775,0.00013698,2]
[420323081,1775964632003,-4.14183843,0.00013698,2]
[420323082,1775964632013,-500.0,0.00013698,2]
[420323083,1775964632023,-500.0,0.00013698,2]
[420323084,1775964632041,-11.01816157,0.00013698,2]
[420323085,1775964632165,-498.46748311,0.00013698,2]
[420323086,1775964632177,-32.11046234,0.00013698,2]
[420323087,1775964632190,-467.88953766,0.00013698,2]
[420323088,1775964632203,-221.27182438,0.00013698,2]
[420323089,1775964632221,-278.72817562,0.00013698,2]
[420323090,1775964632230,-2801.34,0.00013698,2]
[420323091,1775964632239,-503.5688847,0.00013698,2]
[420323094,1775964632267,-2297.7711153,0.00013698,2]
[420323096,1775964632277,-2801.34,0.00013698,2]
[420323098,1775964632292,-2801.34,0.00013698,2]
[420323100,1775964632302,-2801.34,0.00013698,2]
[420323102,1775964632314,-2801.34,0.00013698,2]
[420323104,1775964632325,-2801.34,0.00013698,2]
[420323106,1775964632345,-2801.34,0.00013698,2]
[420323108,1775964632363,-150.0,0.00013699,2]
[420323110,1775964632379,-150.0,0.00013699,2]
[420323111,1775964632394,-150.0,0.00013699,2]
[420323112,1775964632406,-150.0,0.00013699,2]
[420323113,1775964632431,-150.0,0.00013699,2]
[420323114,1775964632447,-150.0,0.00013699,2]
[420323115,1775964632471,-150.0,0.00013699,2]
[420323116,1775964632498,-162.62,0.000137,2]
[420323117,1775964632520,-150.0,0.00013973,2]
[420323118,1775964632546,-150.0,0.00013973,2]
[420323119,1775964632567,-150.0,0.00013973,2]
[420323120,1775964632590,-150.0,0.00014247,2]
[420323121,1775964632608,-150.0,0.00014247,2]
[420323123,1775964632632,-150.0,0.00014247,2]
[420323125,1775964632642,-2500.0,0.000143,2]
[420323126,1775964632671,-2500.0,0.000143,2]
[420323127,1775964632685,-2500.0,0.000143,2]
[420323128,1775964632711,-300.0,0.000143,2]
[420323129,1775964632730,-300.0,0.000143,2]
[420323130,1775964632752,-300.0,0.000143,2]
[420323131,1775964632772,-300.0,0.000143,2]
[420323132,1775964632789,-300.0,0.000143,2]
[420323133,1775964632820,-2500.0,0.000143,2]
[420323134,1775964632833,-2500.0,0.000143,2]
[420323135,1775964632870,-500.0,0.000143,2]
[420323136,1775964632891,-500.0,0.000143,2]
[420323137,1775964632919,-500.0,0.000143,2]
[420323138,1775964632935,-169.54545487,0.000143,2]
[420323139,1775964632967,-150.07760381,0.00014301,2]
[420323140,1775964632979,-150.0,0.00014301,2]
[420323141,1775964633013,-150.0,0.00014301,2]
[420323142,1775964633032,-150.0,0.00014301,2]
[420323143,1775964633048,-150.0,0.00014301,2]
[420323144,1775964633061,-150.0,0.00014301,2]
[420323145,1775964633083,-150.0,0.00014301,2]
[420323146,1775964633101,-150.0,0.00014301,2]
[420323147,1775964633115,-150.0,0.00014301,2]
[420323148,1775964633127,-150.0,0.00014301,2]
[420323149,1775964633147,-150.0,0.00014301,2]
[420323150,1775964633157,-150.0,0.00014301,2]
[420323151,1775964633170,-1600.0,0.00014307,2]
[420323152,1775964633196,-168.74,0.0001435,2]
[420323153,1775964633205,-150.0,0.00014831,2]
[420323154,1775964633214,-150.0,0.00014831,2]
[420323155,1775964633229,-150.0,0.000149,2]
[420323156,1775964633246,-4887.229,0.00014914,2]
[420323157,1775964633255,-180.51,0.00014982,2]
[420323158,1775964633273,-300.0,0.00015,2]
[420323159,1775964633287,-500.0,0.00015013,2]
[420323160,1775964633296,-500.0,0.00015013,2]
[420323161,1775964633311,-500.0,0.00015013,2]
[420323162,1775964633326,-500.0,0.00015013,2]
[420323163,1775964633336,-500.0,0.00015013,2]
[420323164,1775964633346,-500.0,0.00015013,2]
[420323165,1775964633368,-500.0,0.00015013,2]
[420323166,1775964633378,-500.0,0.00015013,2]
[420323167,1775964633387,-160.06788445,0.00015013,2]
[420323168,1775964633405,-500.0,0.00015013,2]
[420323169,1775964633418,-8105.9985726,0.00015014,2]
[420323170,1775964633428,-71182.2222589,0.00015014,2]
[420323171,1775964633438,-889.6930812,0.00015014,2]
[420323172,1775964633461,-21662.6525077,0.00015014,2]
[420323173,1775964633471,-11170.43620272,0.00015014,2]
[420323174,1775964633490,-20138.16146753,0.00015014,2]
[420323175,1775964633503,-13276.57503765,0.00015014,2]
[420323176,1775964633513,-150.0,0.00015096,2]
[420323177,1775964633523,-2270.42966554,0.00015111,2]
[420323178,1775964633541,-700.0,0.00015111,2]
[420323179,1775964633553,-790.72033446,0.00015111,2]
[420323180,1775964633562,-500.0,0.00015161,2]
[420323181,1775964633576,-500.0,0.00015161,2]
[420323182,1775964633586,-500.0,0.00015161,2]
[420323183,1775964633597,-500.0,0.00015161,2]
[420323184,1775964633608,-491.35813401,0.00015161,2]
[420323185,1775964633622,-8.64186599,0.00015161,2]
[420323186,1775964633632,-500.0,0.00015161,2]
[420323187,1775964633645,-150.0,0.00015361,2]
[420323188,1775964633659,-150.0,0.00015361,2]
[420323189,1775964633672,-62.53130946,0.000157,2]
[420323190,1775964633704,-292.91733824,0.000157,2]
[420323191,1775964638231,-468.05,0.00014399,2]
[420323192,1775964638254,-2464.31041914,0.00014914,2]
[420323193,1775964638264,-468.05,0.00015119,2]
[420323194,1775964638278,-1627.12515944,0.000157,2]
[420323195,1775964638302,-175.90574315,0.000158,2]
[420323196,1775964638313,-5000.0,0.000158,2]
[420323197,1775964638333,-2500.0,0.000158,2]
[420323198,1775964638352,-357.53433877,0.000158,2]
[420323199,1775964638368,-2907.99167263,0.000158,2]
[420323200,1775964638390,-468.05,0.00015839,2]
[420323201,1775964638411,-163.87067233,0.00015873,2]
[420323202,1775964638432,-500.0,0.00015873,2]
[420323203,1775964638455,-197.27040387,0.0001589,2]
[420323204,1775964638489,-150.0,0.0001589,2]
[420323205,1775964638511,-245.5339144,0.0001589,2]
[420323206,1775964638525,-208.56537477,0.0001589,2]
[420323207,1775964638537,-150.0,0.0001589,2]
[420323208,1775964638557,-150.0,0.0001589,2]
[420323209,1775964638567,-669.65587208,0.00015899,2]
[420323210,1775964638578,-206.28451163,0.00015899,2]
[420323211,1775964638595,-194.02513034,0.00015899,2]
[420323212,1775964638606,-462.52439242,0.00015899,2]
[420323213,1775964638617,-485.16735902,0.00015899,2]
[420323214,1775964638635,-195.22888232,0.00015899,2]
[420323215,1775964638645,-150.0,0.00015899,2]
[420323216,1775964638660,-500.0,0.00015899,2]
[420323217,1775964638671,-500.0,0.00015899,2]
[420323218,1775964638681,-500.0,0.00015899,2]
[420323219,1775964638696,-500.0,0.00015899,2]
[420323220,1775964638711,-180.01684507,0.00015899,2]
[420323221,1775964638721,-513.4616015,0.00015899,2]
[420323222,1775964638734,-500.0,0.00015899,2]
[420323223,1775964638748,-508.86471161,0.00015899,2]
[420323224,1775964638759,-566.37242696,0.00015899,2]
[420323225,1775964638769,-500.0,0.00015899,2]
[420323226,1775964638784,-500.0,0.00015899,2]
[420323227,1775964638799,-500.0,0.00015899,2]
[420323228,1775964638809,-510.51710892,0.00015899,2]
[420323229,1775964638823,-605.62770244,0.00015899,2]
[420323230,1775964638838,-12920.2877692,0.000159,2]
[420323232,1775964639848,-4131.57449147,0.000159,2]
[420323233,1775964639883,-650.24869359,0.000159,2]
[420323234,1775964640053,-878.74167304,0.000159,2]
[420323235,1775964640182,-421.5,0.000159,2]
[420323236,1775964641399,-156.5124,0.000158,2]
[420323237,1775964641409,-2220.43860865,0.000159,2]
[420323240,1775964641653,-42874.04108691,0.000159,2]
[420323241,1775964641687,-525.6490831,0.000159,2]
[420323242,1775964641724,-33836.37088289,0.000159,2]
[420323243,1775964641735,-2943.95635846,0.000159,2]
[420323244,1775964641746,-5239.89376426,0.000159,2]
[420323247,1775964641803,-630.54431415,0.000159,2]
[420323248,1775964641814,-3861.76996663,0.000159,2]
[420323249,1775964641825,-1492.8292,0.000159,2]
[420323256,1775964643145,-500.0,0.00015013,2]
[420323258,1775964643160,-22.62702627,0.000159,2]
[420323260,1775964643178,-423698.37611293,0.000159,2]
[420323262,1775964643199,-2198.14611638,0.000159,2]
[420323263,1775964643212,-343.10411232,0.000159,2]
[420323276,1775964645904,-1818.31068375,0.000159,2]
[420323277,1775964646100,-151767.99514535,0.000159,2]
[420323278,1775964646318,-289.53899997,0.000159,2]
[420323279,1775964646332,-625.54012998,0.000159,2]
[420323287,1775964646807,-1176.41466757,0.000159,2]
[420323413,1775964705575,284.0,0.0003013,120]
[420323414,1775964759539,383.0,0.0003013,120]
[420323415,1775965076099,150.79441852,0.000301,120]
[420323416,1775965623042,460.0,0.00030137,120]
[420323418,1775965832088,-211.52606068,0.00013263,2]
[420323419,1775965832114,-246.92141261,0.00013295,2]
[420323420,1775965832153,-353.07858739,0.00013295,2]
[420323421,1775965832162,-35.75378711,0.00013326,2]
[420323422,1775965832178,-145.78321289,0.00013326,2]
[420323423,1775965832195,-2093.611,0.00013326,2]
[420323424,1775965832205,-605.60055142,0.00013354,2]
[420323425,1775965832224,-1057.65,0.0001337,2]
[420323426,1775965832233,-150.84890142,0.000134,2]
[420323427,1775965832246,-150.0,0.00013412,2]
[420323428,1775965832261,-150.0,0.000135,2]
[420323429,1775965832271,-913.84325174,0.00013571,2]
[420323430,1775965832289,-286.15674826,0.00013571,2]
[420323431,1775965832306,-28.42320746,0.00013572,2]
[420323432,1775965832349,-271.57679254,0.00013572,2]
[420323433,1775965832358,-551.28534261,0.00013573,2]
[420323434,1775965832376,-591.17903633,0.00013573,2]
[420323435,1775965832385,-99.54114948,0.00013573,2]
[420323436,1775965832399,-301.48251273,0.00013573,2]
[420323437,1775965832421,-98.97633779,0.00013573,2]
[420323438,1775965832431,-500.0,0.00013573,2]
[420323439,1775965832445,-150.0,0.00013595,2]
[420323440,1775965832462,-619.96620744,0.00013596,2]
[420323441,1775965832474,-209.2690586,0.00013597,2]
[420323442,1775965832495,-194.40166832,0.00013597,2]
[420323443,1775965832508,-177.56076083,0.00013597,2]
[420323444,1775965832549,-1.37470224,0.00013597,2]
[420323446,1775965832577,-500.0,0.00013597,2]
[420323449,1775965832596,-215.87920592,0.00013597,2]
[420323450,1775965832617,-500.0,0.00013597,2]
[420323452,1775965832628,-500.0,0.00013597,2]
[420323454,1775965832645,-500.0,0.00013597,2]
[420323456,1775965832666,-500.0,0.00013597,2]
[420323458,1775965832677,-500.0,0.00013597,2]
[420323459,1775965832705,-500.0,0.00013597,2]
[420323460,1775965832722,-150.0,0.00013597,2]
[420323461,1775965832735,-500.0,0.00013597,2]
[420323474,1775965833037,-500.0,0.00013597,2]
[420323476,1775965833054,-500.0,0.00013597,2]
[420323478,1775965833065,-454.15628796,0.00013598,2]
[420323480,1775965833074,-8809.13263859,0.00013598,2]
[420323483,1775965833091,-2531.69785087,0.00013598,2]
[420323485,1775965833108,-574.81083747,0.00013598,2]
[420323487,1775965833123,-1142.64297778,0.00013598,2]
[420323489,1775965833139,-4775.8559646,0.00013598,2]
[420323492,1775965833176,-3698.33092069,0.00013598,2]
[420323496,1775965833215,-1185.86501408,0.00013598,2]
[420323498,1775965833226,-2412.11522595,0.00013598,2]
[420323537,1775965838780,-2605.0243629,0.00013598,2]
[420323538,1775965838799,-330.47737862,0.00013598,2]
[420323539,1775965838828,-1000.000001,0.00013598,2]
[420323540,1775965838924,-564.71213074,0.00013598,2]
[420323541,1775965838937,-1786.32402838,0.00013598,2]
[420323542,1775965838958,-1255.01774215,0.00013598,2]
[420323543,1775965838978,-10474.58017003,0.00013598,2]
[420323544,1775965840560,-374.30924342,0.00013598,2]
[420323545,1775965840677,-3302.40057009,0.00013598,2]
[420323546,1775965840701,-1738.02322196,0.00013598,2]
[420323547,1775965840713,-3466.52067866,0.00013598,2]
[420323548,1775965840735,-3056.19022377,0.00013598,2]
[420323549,1775965840975,-1124.94491459,0.00013598,2]
[420323550,1775965841006,-630.62881612,0.00013598,2]
[420323551,1775965841018,-264.56333182,0.00013598,2]
[420323552,1775965841324,-8441.88632382,0.00013598,2]
[420323553,1775965841369,-564.11572434,0.00013598,2]
[420323562,1775965843415,-32857.07213842,0.00013598,2]
[420323563,1775965843431,-25819.14026162,0.00013598,2]
[420323564,1775965843669,-319.71723744,0.00013598,2]
[420323586,1775965847138,-1295.79346964,0.00013598,2]
[420323588,1775965847149,-8574.70448286,0.00013598,2]
[420323590,1775965847564,-90185.88195267,0.00013598,2]
[420323591,1775965955757,730.0,0.0003013,120]
[420323592,1775966109022,2812.44,0.00030136,120]
[420323600,1775966185067,170.41586484,0.0003013,120]
[420323601,1775966213130,1265.67722271,0.00030137,120]
[420323602,1775966554713,2290.92532004,0.0003,120]
[420323603,1775966567740,158.33,7.056e-05,2]
[420323604,1775966905879,296.0,0.0003,120]
[420323612,1775967031894,-298.71188919,0.00010484,2]
[420323613,1775967031916,-158.33,0.00010584,2]
[420323615,1775967031927,-195.0,0.00011532,2]
[420323617,1775967031937,-600.0,0.00011532,2]
[420323618,1775967031977,-250.0,0.00011532,2]
[420323619,1775967031987,-177.04751019,0.00012966,2]
[420323620,1775967032006,-250.0,0.00013,2]
[420323621,1775967032022,-539.0,0.00013048,2]
[420323622,1775967032033,-6382.9227241,0.00013066,2]
[420323623,1775967032069,-6201.9972759,0.00013066,2]
[420323624,1775967032086,-250.0,0.00013074,2]
[420323625,1775967032108,-2784.14,0.00013169,2]
[420323626,1775967032129,-9115.38,0.00013331,2]
[420323627,1775967032142,-1500.0,0.00013427,2]
[420323628,1775967032159,-1000.0,0.000135,2]
[420323629,1775967032168,-150.0,0.000135,2]
[420323630,1775967032185,-151.0,0.0001359,2]
[420323631,1775967032194,-151.0,0.0001359,2]
[420323632,1775967032211,-151.0,0.0001359,2]
[420323633,1775967032221,-151.0,0.0001359,2]
[420323634,1775967032231,-151.0,0.0001359,2]
[420323635,1775967032248,-541.94358684,0.0001359,2]
[420323636,1775967032258,-141.01071259,0.0001359,2]
[420323637,1775967032286,-343.29292514,0.0001359,2]
[420323638,1775967032297,-868.52832,0.0001359,2]
[420323639,1775967032311,-521.93564284,0.0001359,2]
[420323640,1775967032322,-151.0,0.00013595,2]
[420323641,1775967032356,-151.0,0.00013595,2]
[420323642,1775967032368,-151.0,0.00013595,2]
[420323643,1775967032383,-150.0,0.00013596,2]
[420323644,1775967032401,-801.97108953,0.00013597,2]
[420323645,1775967032441,-6658.03651468,0.00013597,2]
[420323646,1775967032451,-3177.53023632,0.00013598,2]
[420323647,1775967032532,-4061.81751019,0.00013598,2]
[420323648,1775967032544,-32.29259559,0.00013598,2]
[420323649,1775967032567,-3042.0154421,0.00013598,2]